bitfinex-derivatives/quotes_ETHF0:USTF0_20241024
["timestamp","ask_amount","ask_price","bid_price","bid_amount"]
[1729773223685,0.83473,2529.7,2529.6,0.4314]
[1729773223886,0.83473,2529.7,2529.6,0.8742]
[1729773224190,0.39563,2529.7,2529.6,0.8742]
[1729773225895,4.34843,2529.7,2529.6,0.4314]
[1729773226292,4.34843,2529.7,2529.6,1.14029607]
[1729773226491,7.55623,2529.7,2529.6,1.14029607]
[1729773226697,7.97873,2529.7,2529.6,1.14029607]
[1729773226892,8.38693,2529.7,2529.6,1.14029607]
[1729773227993,7.9913,2529.7,2529.6,1.14029607]
[1729773228199,9.13159607,2529.7,2529.4,0.36805414]
[1729773228496,0.39576,2528.9,2528.8,4.56653696]
[1729773228699,3.2078,2529.0,2528.8,3.9726319]
[1729773228997,3.60355,2529.0,2528.8,3.9726319]
[1729773229198,1.42306,2529.3,2528.8,3.9726319]
[1729773229199,0.39574,2529.1,2529.0,0.39573]
[1729773229394,0.39574,2529.1,2529.0,2.8667619]
[1729773230294,0.39574,2529.1,2529.0,2.8667719]
[1729773230495,0.39574,2529.1,2529.0,2.4710319]
[1729773231698,0.39574,2529.1,2529.0,2.8667719]
[1729773231896,0.39574,2529.1,2529.0,2.4710319]
[1729773233098,0.39574,2529.1,2529.0,2.8667719]
[1729773233999,3.60354,2529.1,2529.0,2.4710319]
[1729773234806,0.39574,2529.0,2528.9,0.39574]
[1729773235804,0.39576,2528.9,2528.8,3.3063919]
[1729773236009,0.39575,2529.0,2528.9,0.39574]
[1729773236402,3.2078,2529.1,2528.8,2.9106319]
[1729773236599,0.39576,2528.9,2528.8,3.3063919]
[1729773236909,0.39576,2528.9,2528.8,2.9106319]
[1729773237210,0.39576,2528.9,2528.8,0.4396]
[1729773237211,4.35016,2528.9,2528.8,0.4396]
[1729773237903,4.35016,2528.9,2528.6,2.4710319]
[1729773237904,3.9544,2528.9,2528.6,2.4710319]
[1729773238099,0.39579,2528.7,2528.6,2.4710319]
[1729773238303,0.39579,2528.7,2528.6,2.8668419]
[1729773238498,0.39579,2528.7,2528.6,2.4710319]
[1729773239204,3.60359,2528.7,2528.6,2.4710319]
[1729773239415,3.2078,2528.7,2528.4,3.6941719]
[1729773239607,0.39582,2528.5,2528.4,3.2983319]
[1729773240307,0.39577,2528.9,2528.8,0.39577]
[1729773240512,0.4201,2529.1,2528.6,5.6788319]
[1729773240813,0.39578,2528.8,2528.7,0.80469]
[1729773241002,0.39577,2528.9,2528.7,0.80468]
[1729773241205,0.39577,2528.9,2528.8,0.4112]
[1729773244809,4.94382,2528.9,2528.5,3.60361]
[1729773245005,0.39579,2528.7,2528.6,0.4429]
[1729773245207,0.39579,2528.7,2528.6,0.83871]
[1729773245613,0.39579,2528.7,2528.6,0.4429]
[1729773245815,0.39582,2528.5,2528.4,3.2785619]
[1729773246115,0.39582,2528.5,2528.4,2.8827319]
[1729773246619,0.39582,2528.5,2528.4,3.2785719]
[1729773246915,0.39582,2528.5,2528.4,2.8827319]
[1729773247119,0.39582,2528.5,2528.4,0.4117]
[1729773247410,0.443,2528.6,2528.3,0.83875]
[1729773247608,0.39584,2528.4,2528.3,0.83875]
[1729773247916,0.39584,2528.4,2528.3,0.4429]
[1729773248308,0.39584,2528.4,2528.3,0.83875]
[1729773248911,0.39584,2528.4,2528.3,0.4429]
[1729773249222,0.39587,2528.2,2528.1,0.4347]
[1729773249419,0.39587,2528.2,2528.1,0.4082]
[1729773249615,3.9552,2528.2,2527.8,0.8368]
[1729773249911,0.39592,2527.9,2527.8,1.64093]
[1729773250107,3.6111,2528.1,2527.8,3.7160319]
[1729773250306,0.39591,2528.0,2527.9,0.3959]
[1729773250511,0.39592,2527.9,2527.8,3.7160319]
[1729773250708,3.6111,2528.1,2527.8,3.7160319]
[1729773250906,2.32364801,2528.1,2528.0,2.8669319]
[1729773251109,0.39587,2528.2,2528.1,0.39587]
[1729773251306,0.39585,2528.4,2528.3,0.39584]
[1729773251509,3.2078,2528.7,2528.3,3.2078]
[1729773251713,0.39584,2528.4,2528.3,3.2078]
[1729773251922,4.3648961,2528.6,2528.2,3.3381319]
[1729773252109,0.39584,2528.4,2528.3,0.4394]
[1729773252314,0.39584,2528.4,2528.3,3.3062819]
[1729773254011,0.39584,2528.4,2528.3,2.9104319]
[1729773254413,0.39584,2528.4,2528.3,3.3062819]
[1729773255815,0.98953,2528.6,2528.2,4.43261508]
[1729773256115,0.39585,2528.3,2528.2,0.79251508]
[1729773256517,4.35105,2528.3,2528.2,0.79251508]
[1729773256713,4.35105,2528.3,2528.2,0.35771508]
[1729773257023,0.39589,2528.1,2528.0,0.4304]
[1729773257218,0.3959,2528.0,2527.9,3.2078]
[1729773257521,0.8245,2528.0,2527.9,3.2078]
[1729773257823,4.7805,2528.0,2527.9,3.2078]
[1729773258023,0.8245,2528.0,2527.9,3.2078]
[1729773261428,0.39593,2527.8,2527.7,0.4304]
[1729773261720,0.39593,2527.8,2527.7,0.82635]
[1729773262230,0.39593,2527.8,2527.7,0.4304]
[1729773262422,0.39593,2527.8,2527.7,0.82635]
[1729773262623,0.39593,2527.8,2527.7,0.4304]
[1729773264922,0.39593,2527.8,2527.7,0.82635]
[1729773265518,0.39593,2527.8,2527.7,0.4304]
[1729773269729,0.39593,2527.8,2527.7,0.82635]
[1729773270323,0.39593,2527.8,2527.7,1.96733994]
[1729773271034,0.39593,2527.8,2527.7,1.57138994]
[1729773271222,0.39598,2527.5,2527.4,0.4355]
[1729773271428,0.39598,2527.5,2527.3,1.95338994]
[1729773271429,0.39599,2527.4,2527.3,1.95338994]
[1729773271622,0.79829,2527.4,2527.3,1.95338994]
[1729773272321,0.79829,2527.4,2527.3,5.16118994]
[1729773272526,0.79829,2527.4,2527.3,4.74948994]
[1729773273834,0.79829,2527.4,2527.3,1.54168994]
[1729773274233,0.79829,2527.4,2527.3,0.4007]
[1729773274624,0.39599,2527.4,2527.3,0.79671]
[1729773274828,0.39599,2527.4,2527.3,6.47724276]
[1729773275030,0.39599,2527.4,2527.3,6.08123276]
[1729773275231,0.39599,2527.4,2527.3,3.6085]
[1729773275642,0.39599,2527.4,2527.3,0.4007]
[1729773276043,0.39599,2527.4,2527.3,3.6085]
[1729773276555,0.4164,2527.6,2527.3,6.08123276]
[1729773276732,0.39599,2527.5,2527.4,0.39598]
[1729773277336,0.39599,2527.4,2527.3,4.0045]
[1729773278241,3.2078,2527.9,2527.3,6.08123276]
[1729773278547,0.39599,2527.5,2527.4,0.39598]
[1729773280233,1.39766,2527.8,2527.3,6.08123276]
[1729773280439,0.39597,2527.7,2527.6,0.39595]
[1729773280754,1.39766,2527.8,2527.3,7.07125276]
[1729773280947,0.39599,2527.6,2527.5,0.39597]
[1729773281747,0.39599,2527.5,2527.4,0.39598]
[1729773281943,1.39766,2527.8,2527.3,6.08123276]
[1729773282242,0.39598,2527.6,2527.5,0.39596]
[1729773282942,0.39599,2527.5,2527.4,0.39598]
[1729773283851,0.39599,2527.4,2527.3,4.0045]
[1729773284343,0.39599,2527.4,2527.3,3.6085]
[1729773286057,0.39599,2527.4,2527.3,4.00451]
[1729773286346,0.39599,2527.4,2527.3,3.6085]
[1729773287247,4.35279,2527.4,2527.3,3.6085]
[1729773288146,0.39599,2527.4,2527.3,4.00451]
[1729773288547,0.39599,2527.4,2527.3,3.6085]
[1729773289749,0.39599,2527.4,2527.3,4.00451]
[1729773290056,3.2078,2528.2,2527.4,0.98999]
[1729773290259,0.98972,2528.1,2527.6,3.2078]
[1729773290446,0.98972,2528.1,2527.7,1.20733]
[1729773290447,0.39595,2527.8,2527.7,1.20733]
[1729773292747,0.39595,2527.8,2527.7,0.8114]
[1729773294256,0.39595,2527.8,2527.7,1.20735]
[1729773294955,0.39595,2527.8,2527.7,0.8114]
[1729773297454,0.39595,2527.8,2527.7,1.20735]
[1729773298247,0.39593,2528.0,2527.9,0.3959]
[1729773298455,0.4221,2528.3,2527.9,3.2078]
[1729773298658,0.4221,2528.3,2528.2,0.39587]
[1729773298659,0.39587,2528.3,2528.2,0.39587]
[1729773298855,0.39587,2528.2,2528.1,2.86861276]
[1729773299159,0.39587,2528.2,2528.1,2.86862276]
[1729773299658,41.2221,2528.4,2528.1,6.42793276]
[1729773299862,0.39587,2528.3,2528.2,4.03227]
[1729773300252,41.2221,2528.4,2528.3,0.39583]
[1729773300253,0.39585,2528.4,2528.3,0.39583]
[1729773300451,0.39585,2528.4,2528.3,2.86856276]
[1729773300650,0.39585,2528.4,2528.3,2.47273276]
[1729773300852,8.1987488,2528.4,2528.1,1.03350506]
[1729773301153,0.39585,2528.3,2528.2,0.8318]
[1729773301454,0.39589,2528.1,2528.0,1.03350506]
[1729773301659,0.39589,2528.1,2528.0,0.6189493]
[1729773303262,0.39589,2528.1,2528.0,1.65245436]
[1729773303561,0.39589,2528.1,2528.0,2.04835436]
[1729773304055,40.8,2528.6,2528.0,7.12595301]
[1729773304259,0.39588,2528.3,2528.2,6.07639276]
[1729773304557,0.39588,2528.3,2528.2,6.69534206]
[1729773306352,0.39588,2528.3,2528.2,6.69529018]
[1729773306553,0.39588,2528.3,2528.2,6.07639276]
[1729773306957,0.39588,2528.3,2528.2,6.07640276]
[1729773307658,0.39584,2528.5,2528.4,0.39583]
[1729773307955,0.39584,2528.4,2528.3,0.8425]
[1729773309159,0.39584,2528.4,2528.3,1.23835]
[1729773309856,0.39584,2528.4,2528.3,0.8425]
[1729773310256,0.39585,2528.3,2528.2,3.2078]
[1729773310651,3.9552,2528.3,2528.1,1.03350506]
[1729773310958,9.56614136,2528.5,2528.1,1.03350506]
[1729773310959,0.83117,2528.2,2528.1,1.03350506]
[1729773311163,0.83117,2528.2,2528.1,1.46130506]
[1729773311858,0.4353,2528.2,2528.1,4.32992782]
[1729773312062,0.39587,2528.2,2528.1,4.32992782]
[1729773312362,0.39586,2528.3,2528.2,0.39585]
[1729773312561,0.39586,2528.3,2528.2,3.60365]
[1729773313857,0.39585,2528.4,2528.3,0.39583]
[1729773316360,0.39585,2528.4,2528.3,0.80453]
[1729773317164,40.8,2528.7,2528.3,7.82627276]
[1729773317462,0.39579,2528.7,2528.6,2.47273276]
[1729773317770,0.39579,2528.7,2528.6,2.86854276]
[1729773317964,0.39579,2528.8,2528.7,0.39578]
[1729773318266,0.39573,2529.2,2529.1,0.39572]
[1729773318567,0.39576,2528.9,2528.8,0.81437]
[1729773318863,0.39575,2529.1,2529.0,0.39573]
[1729773319062,0.39575,2529.1,2529.0,3.2078]
[1729773319359,0.39575,2529.1,2529.0,5.68053276]
[1729773319560,0.4107,2529.3,2529.0,10.07153276]
[1729773319760,0.39571,2529.2,2529.1,0.4303]
[1729773321860,0.39571,2529.2,2529.1,2.90303276]
[1729773324863,0.39571,2529.2,2529.1,3.29876276]
[1729773326572,0.39571,2529.2,2529.1,2.90303276]
[1729773326776,0.39571,2529.2,2529.1,3.29876276]
[1729773329271,0.39571,2529.2,2529.1,2.90303276]
[1729773329565,0.39571,2529.2,2529.1,0.4303]
[1729773329966,0.39571,2529.2,2529.1,2.90303276]
[1729773330770,0.39571,2529.2,2529.1,3.29876276]
[1729773332171,0.39571,2529.2,2529.1,7.25236276]
[1729773332380,0.39571,2529.3,2529.2,0.3957]
[1729773332570,0.39571,2529.3,2529.2,2.86843276]
[1729773333073,0.39571,2529.3,2529.2,2.47273276]
[1729773336373,0.39571,2529.3,2529.2,2.86844276]
[1729773336571,0.39571,2529.3,2529.2,2.47273276]
[1729773336777,0.39571,2529.3,2529.2,2.86844276]
[1729773336967,0.39569,2529.4,2529.3,0.3957]
[1729773337171,0.39569,2529.4,2529.3,3.6035]
[1729773337874,0.39569,2529.4,2529.3,3.2078]
[1729773338069,0.98914,2529.6,2529.2,2.47273276]
[1729773338379,0.8354,2529.3,2529.2,2.47273276]
[1729773339072,0.8354,2529.3,2529.2,2.86844276]
[1729773339770,0.8354,2529.3,2529.2,2.47273276]
[1729773340378,0.4397,2529.3,2529.1,0.82602]
[1729773340565,0.39571,2529.2,2529.1,0.82602]
[1729773340766,0.39571,2529.2,2529.1,2.90303276]
[1729773341082,0.39571,2529.2,2529.1,0.4303]
[1729773341875,0.39573,2529.1,2529.0,3.2078]
[1729773342082,0.39578,2528.8,2528.7,2.47273276]
[1729773342266,0.39578,2528.8,2528.7,2.86852276]
[1729773342874,0.39578,2528.8,2528.7,6.82292276]
[1729773343679,0.39577,2528.9,2528.8,0.39575]
[1729773343980,0.81975,2529.1,2529.0,0.39574]
[1729773344180,0.81975,2529.1,2529.0,2.47273276]
[1729773344882,0.81975,2529.1,2529.0,6.07627276]
[1729773345184,0.81975,2529.1,2529.0,6.10863276]
[1729773345675,0.81975,2529.1,2529.0,3.6359]
[1729773346977,0.81975,2529.1,2529.0,3.2078]
[1729773347178,0.39574,2529.0,2528.9,2.87443276]
[1729773347583,0.39574,2529.0,2528.9,6.08223276]
[1729773350586,0.39574,2529.0,2528.9,2.87443276]
[1729773350776,0.39574,2529.0,2528.9,6.08223276]
[1729773350975,0.39574,2529.0,2528.9,2.47273276]
[1729773351182,0.81294,2529.0,2528.9,2.47273276]
[1729773352282,0.39579,2528.7,2528.6,5.22698528]
[1729773352480,0.39579,2528.7,2528.6,7.50833112]
[1729773353082,0.98938,2529.0,2528.6,7.73128531]
[1729773353290,0.39574,2529.0,2528.9,1.14067292]
[1729773353895,0.39574,2529.0,2528.9,4.34847292]
[1729773354492,0.39574,2529.0,2528.9,5.67905161]
[1729773355190,0.39574,2529.0,2528.9,6.07481161]
[1729773355579,0.424,2529.1,2529.0,0.39574]
[1729773355580,0.39574,2529.1,2529.0,0.39574]
[1729773355780,0.39574,2529.1,2529.0,5.20284]
[1729773355986,0.39574,2529.1,2529.0,5.61354]
[1729773356289,0.98922,2529.4,2529.0,5.2178]
[1729773356595,0.98922,2529.4,2529.3,2.47125161]
[1729773356596,0.39568,2529.4,2529.3,2.47125161]
[1729773357792,0.98927,2529.3,2528.9,3.56628917]
[1729773357997,0.39574,2529.0,2528.9,3.56628917]
[1729773358194,0.39574,2529.0,2528.9,3.2078]
[1729773359189,0.4335,2529.1,2528.7,0.79911053]
[1729773359487,0.39578,2528.8,2528.7,0.79911053]
[1729773361492,0.39578,2528.8,2528.7,0.44]
[1729773361693,0.39579,2528.7,2528.6,3.2078]
[1729773361999,1.25659,2528.7,2528.6,3.2078]
[1729773362398,0.39582,2528.5,2528.4,1.03350506]
[1729773362597,0.39582,2528.5,2528.4,1.6523774]
[1729773363098,0.436,2528.7,2528.4,1.77614825]
[1729773363297,0.83179,2528.7,2528.6,2.86706161]
[1729773363702,0.9894,2529.0,2528.6,8.29108391]
[1729773363894,0.39574,2529.0,2528.9,2.47125161]
[1729773364297,0.39578,2528.8,2528.7,2.47125161]
[1729773364491,0.39578,2528.8,2528.7,3.48585065]
[1729773364697,4.61015,2529.1,2528.7,8.07796571]
[1729773365008,0.39574,2529.0,2528.9,2.47125161]
[1729773370210,0.39578,2528.8,2528.7,5.67905161]
[1729773370408,0.39578,2528.8,2528.7,8.24180292]
[1729773370617,0.39578,2528.8,2528.7,8.98432963]
[1729773370916,0.39578,2528.8,2528.7,7.45854057]
[1729773371714,0.39578,2528.8,2528.7,7.73057612]
[1729773371915,0.39578,2528.8,2528.7,7.33478612]
[1729773372310,0.39578,2528.8,2528.7,0.61877226]
[1729773372516,0.39579,2528.7,2528.6,0.8076]
[1729773372813,0.82729,2528.7,2528.6,3.89768203]
[1729773373216,0.39579,2528.7,2528.6,3.89768203]
[1729773374712,0.39579,2528.7,2528.6,4.93464428]
[1729773375620,0.98939,2529.0,2528.6,8.88904428]
[1729773375819,0.98939,2529.0,2528.7,7.89886954]
[1729773375820,0.39579,2528.8,2528.7,7.89886954]
[1729773376214,0.39577,2528.9,2528.8,0.39575]
[1729773376422,3.2078,2529.7,2528.8,5.22068985]
[1729773376617,0.98918,2529.5,2529.1,3.2078]
[1729773376918,0.3957,2529.3,2529.2,0.8363]
[1729773377426,0.3957,2529.3,2528.9,1.03689774]
[1729773377427,0.98927,2529.3,2528.9,1.03689774]
[1729773377726,0.39574,2529.0,2528.9,2.26895774]
[1729773377930,0.39574,2529.0,2528.9,4.96317606]
[1729773378130,0.39574,2529.0,2528.9,4.34444935]
[1729773378427,0.39574,2529.0,2528.9,4.96318627]
[1729773378825,0.39574,2529.0,2528.9,3.92628853]
[1729773380129,0.39574,2529.0,2528.9,3.30755161]
[1729773380325,0.39574,2529.0,2528.9,3.92632051]
[1729773382230,4.35014,2529.0,2528.9,0.6187689]
[1729773382426,4.35014,2529.0,2528.6,1.03689774]
[1729773382427,0.39579,2528.7,2528.6,1.03689774]
[1729773383226,0.4321,2528.8,2528.5,3.92864935]
[1729773383424,0.4321,2528.8,2528.6,1.03689774]
[1729773383425,0.39579,2528.7,2528.6,1.03689774]
[1729773383833,0.4321,2528.8,2528.5,7.13644935]
[1729773384030,1.39273,2528.9,2528.5,4.66519774]
[1729773384031,0.39581,2528.6,2528.5,4.66519774]
[1729773384238,0.39581,2528.6,2528.5,9.80028489]
[1729773384440,0.39581,2528.6,2528.5,9.28256876]
[1729773385035,0.39581,2528.6,2528.5,8.24498177]
[1729773385234,0.39581,2528.6,2528.5,9.67835308]
[1729773385433,0.39581,2528.6,2528.5,10.19625307]
[1729773387129,0.39581,2528.6,2528.5,9.92419949]
[1729773387328,0.39581,2528.6,2528.5,9.80043307]
[1729773388233,0.39581,2528.6,2528.5,3.18332155]
[1729773388427,0.39582,2528.5,2528.4,1.43989139]
[1729773388738,0.82522,2528.5,2528.4,1.43989139]
[1729773389339,0.82522,2528.5,2528.4,0.402]
[1729773389637,0.82522,2528.5,2528.4,2.45461437]
[1729773389638,0.39582,2528.5,2528.4,2.45461437]
[1729773389832,0.39582,2528.5,2528.4,3.86298945]
[1729773390026,0.39582,2528.5,2528.4,3.98676022]
[1729773390426,0.4416,2528.9,2528.4,3.59092022]
[1729773390638,0.39582,2528.6,2528.5,6.37426286]
[1729773390839,0.39582,2528.6,2528.5,6.37427499]
[1729773391137,1.43105,2528.9,2528.5,7.50505837]
[1729773391336,0.39581,2528.7,2528.6,1.57563878]
[1729773391534,0.39581,2528.7,2528.6,2.61353017]
[1729773391734,0.39581,2528.7,2528.6,3.60361177]
[1729773391938,0.39581,2528.7,2528.6,2.61353017]
[1729773392140,0.39579,2528.8,2528.7,0.39578]
[1729773392336,0.39579,2528.8,2528.7,3.48584529]
[1729773393137,0.98936,2529.1,2528.7,3.09006529]
[1729773393434,0.81634,2529.0,2528.9,2.47125161]
[1729773393639,0.39574,2529.0,2528.9,2.47125161]
[1729773394445,0.39574,2529.0,2528.9,2.86701161]
[1729773394746,0.39574,2529.0,2528.9,2.47125161]
[1729773396543,0.39574,2529.0,2528.9,2.86701161]
[1729773396747,0.39574,2529.0,2528.9,3.48578919]
[1729773397043,0.39574,2529.0,2528.9,5.65457473]
[1729773397248,0.39574,2529.0,2528.9,4.52368058]
[1729773397741,0.39574,2529.0,2528.9,5.5552249]
[1729773398236,0.39574,2529.0,2528.9,5.39978616]
[1729773398644,0.39574,2529.0,2528.9,3.87321671]
[1729773398845,0.39574,2529.0,2528.9,3.509143]
[1729773401441,0.39574,2529.0,2528.9,2.47125161]
[1729773402248,0.39571,2529.2,2529.1,2.47125161]
[1729773402442,0.39571,2529.2,2529.1,0.4387]
[1729773403552,0.39571,2529.2,2529.1,3.6465]
[1729773404249,0.39571,2529.2,2529.1,5.18269645]
[1729773404444,0.39571,2529.2,2529.1,4.78696645]
[1729773404848,0.39571,2529.2,2529.1,5.40567543]
[1729773410658,0.39571,2529.2,2529.1,5.40567645]
[1729773411959,0.39571,2529.2,2529.1,6.44313655]
[1729773412265,0.39571,2529.2,2529.1,5.40567645]
[1729773413666,0.39571,2529.2,2529.1,5.40567372]
[1729773413955,0.39571,2529.2,2529.1,4.96697372]
[1729773414157,0.39571,2529.2,2529.1,1.75917372]
[1729773414372,0.39571,2529.2,2529.1,1.14046645]
[1729773420769,0.39571,2529.2,2529.1,1.53619645]
[1729773421669,0.39571,2529.3,2529.2,0.3957]
[1729773421866,0.39571,2529.3,2529.2,6.03886645]
[1729773422171,0.4251,2529.6,2529.2,10.7372329]
[1729773422362,40.8,2530.7,2529.5,6.526193]
[1729773422363,3.2078,2530.5,2529.5,6.526193]
[1729773422559,0.39559,2530.1,2530.0,0.39557]
[1729773422765,0.39559,2530.1,2530.0,1.69047]
[1729773423065,0.39559,2530.1,2530.0,7.9242029]
[1729773423268,3.2078,2530.5,2530.2,0.39555]
[1729773423269,0.39556,2530.3,2530.2,0.39555]
[1729773423476,0.39556,2530.3,2530.2,2.2809329]
[1729773423972,0.39556,2530.3,2530.2,2.6764929]
[1729773424169,0.39556,2530.3,2530.2,5.8842929]
[1729773424769,0.39556,2530.3,2530.2,5.4887329]
[1729773424974,0.39554,2530.4,2530.3,0.39553]
[1729773425173,0.39554,2530.4,2530.3,1.53599645]
[1729773425870,0.39554,2530.4,2530.3,1.53600645]
[1729773426269,0.39552,2530.5,2530.4,0.39551]
[1729773426467,0.39552,2530.5,2530.4,2.86516895]
[1729773426770,0.39552,2530.5,2530.4,2.86518895]
[1729773427970,0.39552,2530.5,2530.4,2.46965895]
[1729773428166,0.39552,2530.5,2530.4,2.86518895]
[1729773428368,0.39552,2530.5,2530.4,2.46965895]
[1729773428564,0.39552,2530.5,2530.4,2.86518895]
[1729773428777,0.39552,2530.5,2530.4,2.46965895]
[1729773429073,0.39552,2530.5,2530.4,2.86518895]
[1729773429470,0.39552,2530.5,2530.4,2.46965895]
[1729773429674,0.39552,2530.5,2530.4,2.86518895]
[1729773430172,0.39552,2530.5,2530.4,2.46965895]
[1729773430879,0.39552,2530.5,2530.4,2.86518895]
[1729773431774,0.39552,2530.5,2530.4,2.46965895]
[1729773434179,0.39554,2530.3,2530.2,2.46965895]
[1729773434770,0.39554,2530.3,2530.2,5.67745895]
[1729773434971,0.39554,2530.3,2530.2,6.04962221]
[1729773437882,0.39554,2530.3,2530.2,6.44518221]
[1729773438082,0.39554,2530.3,2530.2,6.04962221]
[1729773439178,44.0078,2530.8,2530.2,6.04962221]
[1729773439385,0.9887,2530.7,2530.5,2.46965895]
[1729773439680,0.39549,2530.6,2530.5,2.46965895]
[1729773443481,0.39549,2530.6,2530.5,2.86516895]
[1729773443778,1.97704,2531.2,2530.5,5.67745895]
[1729773443779,0.98851,2531.2,2530.5,5.67745895]
[1729773443979,0.39545,2531.0,2530.9,0.39543]
[1729773444186,0.4343,2531.1,2530.8,3.2078]
[1729773444599,0.98835,2531.6,2531.2,0.39538]
[1729773444879,0.39537,2531.4,2531.3,0.8627]
[1729773445083,0.39537,2531.4,2531.3,1.2957]
[1729773445287,0.39537,2531.4,2531.3,1.69108]
[1729773445489,0.39537,2531.4,2531.3,5.64148]
[1729773445687,0.39537,2531.4,2531.3,8.11113895]
[1729773446980,0.98827,2531.8,2531.3,7.3540179]
[1729773447185,1.40741,2532.0,2531.6,2.86497895]
[1729773447378,0.81448,2532.0,2531.9,2.46965895]
[1729773447689,0.39528,2532.0,2531.9,2.46965895]
[1729773447881,0.39528,2532.0,2531.9,6.41925895]
[1729773448884,4.19589,2532.3,2531.9,7.53825895]
[1729773449081,4.19589,2532.3,2532.2,2.46965895]
[1729773449082,3.60303,2532.3,2532.2,2.46965895]
[1729773449885,0.39523,2532.3,2532.2,2.46965895]
[1729773450188,0.39523,2532.3,2532.2,6.81369895]
[1729773450586,0.39523,2532.3,2532.2,6.41845895]
[1729773450884,0.3952,2532.5,2532.4,0.39521]
[1729773451090,0.3952,2532.5,2532.4,5.67745895]
[1729773451279,0.3952,2532.5,2532.4,9.62625895]
[1729773451483,0.39515,2532.8,2532.7,2.46965895]
[1729773452485,0.39518,2532.6,2532.5,2.46965895]
[1729773452795,0.39521,2532.4,2532.3,2.46965895]
[1729773453680,0.39521,2532.4,2532.3,6.41845895]
[1729773454887,0.98788,2532.8,2532.3,6.41845895]
[1729773455091,3.2078,2532.9,2532.7,2.46965895]
[1729773455394,0.39515,2532.8,2532.7,2.46965895]
[1729773456279,1.41362,2533.0,2532.7,2.46965895]
[1729773456480,0.39515,2532.8,2532.7,2.46965895]
[1729773459780,0.39515,2532.8,2532.7,5.67745895]
[1729773460189,0.39515,2532.8,2532.7,6.79645895]
[1729773460392,0.39515,2532.8,2532.7,7.19162895]
[1729773461191,0.39515,2532.8,2532.7,6.79645895]
[1729773461899,0.39517,2532.7,2532.6,0.4054]
[1729773463996,0.39517,2532.7,2532.5,4.02375895]
[1729773463997,0.39518,2532.6,2532.5,2.46965895]
[1729773468299,1.41489,2532.8,2532.5,2.46965895]
[1729773468599,0.39518,2532.6,2532.5,2.46965895]
[1729773475803,0.39518,2532.7,2532.6,0.39517]
[1729773475997,0.39518,2532.7,2532.6,3.6268]
[1729773479820,4.34398,2532.7,2532.6,3.2078]
[1729773483109,4.34398,2532.7,2532.3,2.46965895]
[1729773483110,7.1566,2532.7,2532.3,2.46965895]
[1729773483315,0.39521,2532.4,2532.3,2.46965895]
[1729773483706,4.34401,2532.4,2532.3,2.46965895]
[1729773483908,0.9881,2532.3,2532.1,2.46965895]
[1729773484107,0.39526,2532.1,2532.0,3.2078]
[1729773486815,0.39528,2532.0,2531.9,2.46965895]
[1729773487007,0.39528,2532.0,2531.9,5.67745895]
[1729773487515,0.39528,2532.0,2531.9,6.51064895]
[1729773487912,0.39526,2532.2,2532.1,0.39525]
[1729773488215,0.39526,2532.2,2532.1,2.86490895]
[1729773488715,0.39526,2532.2,2532.1,3.89211084]
[1729773489315,0.98801,2532.5,2532.1,7.44646084]
[1729773489517,0.3952,2532.5,2532.4,2.46965895]
[1729773491513,0.3952,2532.5,2532.4,3.50202237]
[1729773491816,0.39521,2532.4,2532.3,1.03236342]
[1729773492016,3.9488,2532.4,2532.2,4.24016342]
[1729773492211,4.75173,2532.3,2532.2,4.24016342]
[1729773492407,4.75173,2532.3,2532.2,6.26506656]
[1729773492722,4.75173,2532.3,2532.2,5.7586687]
[1729773492912,4.75173,2532.3,2532.2,6.71186393]
[1729773493215,4.75173,2532.3,2532.2,3.50406393]
[1729773493616,4.75173,2532.3,2532.1,1.03440498]
[1729773493617,0.39524,2532.2,2532.1,1.03440498]
[1729773493817,0.39526,2532.1,2532.0,1.03481132]
[1729773494010,4.34486,2532.1,2532.0,1.03481132]
[1729773494212,4.34486,2532.1,2531.9,3.2078]
[1729773494213,0.39528,2532.0,2531.9,3.2078]
[1729773494924,0.39528,2532.0,2531.9,3.82586255]
[1729773495308,0.39528,2532.0,2531.9,3.82584283]
[1729773495517,0.39528,2532.0,2531.9,3.2078]
[1729773496210,0.39528,2532.0,2531.9,5.67745895]
[1729773498518,0.39528,2532.0,2531.9,6.09095895]
[1729773500311,0.39528,2532.0,2531.9,6.48624895]
[1729773501320,0.39528,2532.1,2532.0,0.39526]
[1729773501615,0.39528,2532.1,2532.0,3.27641895]
[1729773503010,0.39528,2532.1,2532.0,7.22601895]
[1729773504118,0.98806,2532.4,2532.0,7.22601895]
[1729773504119,0.39524,2532.4,2532.3,0.39522]
[1729773504430,0.39524,2532.4,2532.3,2.86487895]
[1729773504721,0.39524,2532.4,2532.3,6.81367895]
[1729773504917,0.39524,2532.4,2532.3,7.23517895]
[1729773505723,0.39524,2532.4,2532.3,2.89115895]
[1729773506617,0.39524,2532.4,2532.3,3.28638895]
[1729773509025,0.39524,2532.4,2532.3,7.23518895]
[1729773509224,0.39524,2532.4,2532.3,7.85308641]
[1729773509829,0.4097,2532.8,2532.3,7.45785641]
[1729773510127,0.80485,2532.8,2532.7,2.46965895]
[1729773511623,0.39517,2532.7,2532.6,0.8685]
[1729773513125,0.39517,2532.7,2532.6,1.26368]
[1729773513930,0.39517,2532.7,2532.6,0.8685]
[1729773514329,0.39517,2532.7,2532.6,1.26368]
[1729773515628,0.39517,2532.7,2532.6,0.8685]
[1729773515829,0.39517,2532.7,2532.6,1.26368]
[1729773518335,0.39517,2532.7,2532.6,0.8685]
[1729773518826,0.39517,2532.7,2532.6,1.26368]
[1729773520136,0.39517,2532.7,2532.6,0.8685]
[1729773520328,0.39517,2532.7,2532.6,0.4309]
[1729773530136,0.39518,2532.6,2532.5,6.04202485]
[1729773530337,0.39518,2532.6,2532.5,5.67745895]
[1729773530739,0.39518,2532.6,2532.5,6.07265895]
[1729773530943,0.39518,2532.6,2532.5,5.67745895]
[1729773532543,0.39518,2532.6,2532.5,6.50365895]
[1729773532744,0.39518,2532.6,2532.5,6.10845895]